Cogmind - Beta 13 @@@ ROGUE MODE // 2024.07.20 @ 13:26:37 Player: saltine Result: Destroyed by S-27 Virus with Autogun Performance ------------- Evolutions (3) 1500 Regions Visited (10) 2000 Robots Destroyed (13) 65 Value Destroyed (357) 357 Prototype IDs (239) 4780 Alien Tech Used (0) 0 Bonus (3685) 3685 TOTAL SCORE: 12387 Bonus ------- Follower Combat Kills 96 Aligned with FarCom 300 Met Data Miner 300 Used Data Conduit 3000 Friendly Fire -11 Cogmind --------- Core Integrity 0/700 Matter 300/300 Energy 98/100 System Corruption 0% Temperature Cool (0) Movement Core (50) Location -6/Proximity Caves Parts ------- > --- POWER (1) -------- (None) > --- PROPULSION (4) --- (None) > --- UTILITY (6) ------ Advanced Visual Processing Unit > --- WEAPON (2) ------- Makeshift Hammer > --- INVENTORY (5) ---- Armored Huge Wheel Armored Huge Wheel Small Laser Peak State ------------ > --- POWER ------------ Improved Deuterium Engine > --- PROPULSION ------- Armored Huge Wheel > --- UTILITY ---------- Improved Heat Sink Large Storage Unit Advanced Visual Processing Unit Hacking Suite Hacking Suite > --- WEAPON ----------- Particle Gun Battle Cannon > --- INVENTORY -------- Ion Engine Light Deuterium Engine Wheel Compact Wheel Armored Huge Wheel Armored Huge Wheel Advanced Visual Processing Unit Chronowheel Small Laser Light Assault Rifle Makeshift Hammer [Rating: 33] Favorites ----------- Power Ion Engine Engine Ion Engine Propulsion Light Treads Treads Light Treads Leg Aluminum Leg Wheel Armored Huge Wheel Utility Hacking Suite Device Improved Heat Sink Storage Large Storage Unit Processor Advanced Visual Processing Unit Hackware Hacking Suite Weapon Small Laser Energy Gun Small Laser Ballistic Gun Light Assault Rifle Ballistic Cannon Battle Cannon Impact Weapon Makeshift Hammer Build | -11 -10 -10 -10 -9 -8 -7 -7 -7 -7 -6 ------- Run | Yrd Mat Min Exi Min Mat Fac Low Low Dat Pro Slots Evolved 6 | . . . . . 4 2 . . . . Power . | . . . . . . . . . . . Propulsion 2 | . . . . . 2 . . . . . Utility 4 | . . . . . 2 2 . . . . Weapon . | . . . . . . . . . . . Parts Attached 15 | 2 1 1 2 . 2 2 . 4 1 . Power 1 | . . . . . . . . 1 . . Engine 1 | . . . . . . . . 1 . . Core . | . . . . . . . . . . . Reactor . | . . . . . . . . . . . Propulsion 3 | 2 . . . . . 1 . . . . Treads 2 | 2 . . . . . . . . . . Leg . | . . . . . . . . . . . Wheel 1 | . . . . . . 1 . . . . Hover . | . . . . . . . . . . . Flight . | . . . . . . . . . . . Utility 5 | . . . 2 . 2 1 . . . . Device 1 | . . . 1 . . . . . . . Storage 1 | . . . 1 . . . . . . . Processor 1 | . . . . . 1 . . . . . Hackware 2 | . . . . . 1 1 . . . . Protection . | . . . . . . . . . . . Artifact . | . . . . . . . . . . . Weapon 6 | . 1 1 . . . . . 3 1 . Energy Gun 2 | . 1 . . . . . . 1 . . Energy Cannon . | . . . . . . . . . . . Ballistic Gun 2 | . . 1 . . . . . 1 . . Ballistic Cannon 1 | . . . . . . . . 1 . . Launcher . | . . . . . . . . . . . Special Weapon . | . . . . . . . . . . . Impact Weapon 1 | . . . . . . . . . 1 . Slashing Weapon . | . . . . . . . . . . . Piercing Weapon . | . . . . . . . . . . . Special Melee Weapon . | . . . . . . . . . . . Unidentified Prototypes . | . . . . . . . . . . . Parts Lost 12 | . . . . . . . 2 5 4 1 Power 2 | . . . . . . . 1 1 . . Propulsion 3 | . . . . . . . 1 1 1 . Utility 3 | . . . . . . . . . 2 1 Weapon 4 | . . . . . . . . 3 1 . Highest Loss Streak 4 | . . . . . . . 2 3 4 1 To Critical Strikes . | . . . . . . . . . . . Average Slot Usage (%) 78 | . 85 85 92 100 78 79 84 59 52 22 Engine 9 | . 14 14 14 14 9 7 7 1 . . Treads 18 | . 28 28 28 28 18 15 15 . . . Wheel 2 | . . . . . . 6 7 7 6 . Device 5 | . . . 6 14 9 7 7 7 6 . Storage 10 | . 14 14 14 14 9 7 7 7 6 . Processor 3 | . . . . . 7 7 7 7 7 7 Hackware 6 | . . . . . 7 11 15 15 14 6 Energy Gun 12 | . 28 23 14 14 9 7 7 7 6 . Ballistic Gun 6 | . . 4 14 14 9 7 7 2 . . Naked Turns . | . . . . . . . . . . . Heaviest Build 35 | 13 13 13 28 28 28 28 28 35 27 3 Greatest Support 40 | 40 40 40 40 40 40 40 28 28 28 3 Greatest Overweight (x) 1 | . . . . . . . . 1 . . Average Overweight (x) . | . . . . . . . . . . . Largest Inventory Capacity 15 | 8 8 8 15 15 15 15 15 15 15 5 Average Capacity 11 | 8 8 8 8 15 15 15 15 15 14 5 Most Carried 15 | 6 7 8 8 8 10 15 15 15 12 5 Average Carried 9 | 6 6 6 7 8 9 13 15 12 10 5 Final Capacity 15 | 8 8 8 15 15 15 15 15 15 5 5 Final Carried 15 | 6 7 8 8 8 10 15 15 12 5 5 Class Distribution -------------------- 65% | Mutant 34% | Hacker-Mutant Dominant Class ---------------- Mutant | -10/Materials Mutant | -10/Mines Mutant | -10/Exiles Mutant | -9/Mines Mutant | -8/Materials Hacker-Mutant | -7/Factory Hacker-Mutant | -7/Lower Caves Hacker-Mutant | -7/Lower Caves Hacker-Mutant | -7/Data Miner Mutant | -6/Proximity Caves Resources | -11 -10 -10 -10 -9 -8 -7 -7 -7 -7 -6 ----------- Run | Yrd Mat Min Exi Min Mat Fac Low Low Dat Pro Matter Collected 368 | 220 . 29 . . 41 . 28 50 . . Remotely . | . . . . . . . . . . . Salvage Created 377 | . 85 158 . . . . 80 54 . . Parts 25 | . 5 18 . . . . 2 . . . Haulers Intercepted . | . . . . . . . . . . . Recyclers Shooed . | . . . . . . . . . . . Parts Field Recycled . | . . . . . . . . . . . Retrieved Matter . | . . . . . . . . . . . Parts Self-Destructed 7 | . . . . . . . 6 . . 1 Prevented . | . . . . . . . . . . . Kills | -11 -10 -10 -10 -9 -8 -7 -7 -7 -7 -6 ------- Run | Yrd Mat Min Exi Min Mat Fac Low Low Dat Pro Combat Hostiles Destroyed 13 | . 2 8 . . . . 2 1 . . Guns 11 | . 2 6 . . . . 2 1 . . AOE 2 | . . 2 . . . . . . . . Classes Destroyed 3 | . 1 1 . . . . . 1 . . Swarmer 6 | . . 6 . . . . . . . . Grunt 6 | . 2 2 . . . . 2 . . . Sentry 1 | . . . . . . . . 1 . . Best Kill Streak 3 | . 2 3 . . . . 2 1 . . Combat Bots Only 3 | . 2 3 . . . . 2 1 . . Max Kills in Single Turn 2 | . 1 2 . . . . 1 1 . . Gunslinging 1 | . . 1 . . . . . . . . Exploded 2 | . . 2 . . . . . . . . Melee . | . . . . . . . . . . . Uniques/NPCs Destroyed . | . . . . . . . . . . . Combat | -11 -10 -10 -10 -9 -8 -7 -7 -7 -7 -6 -------- Run | Yrd Mat Min Exi Min Mat Fac Low Low Dat Pro Hostile Shots Fired 230 | . 5 22 . . 4 . 22 144 13 20 Missed 78 | . . 6 . . 1 . 9 55 5 2 Damage Taken 2020 | . 55 188 . . 28 . 209 869 378 293 Core 748 | . . 42 . . . . . 247 241 218 Absorbed by Shields . | . . . . . . . . . . . Core Remaining (%) 94 | 100 . . . 83 100 . . . . . Volleys Fired 44 | . 7 14 . . 1 . 8 13 1 . Largest 2 | . 2 2 . . 1 . 2 2 1 . Hottest 104 | . 80 80 . . 20 . 60 104 65 . Shots Fired 84 | . 14 27 . . 1 . 16 25 1 . Gun 81 | . 14 27 . . 1 . 16 22 1 . Cannon 3 | . . . . . . . . 3 . . Launcher . | . . . . . . . . . . . Special . | . . . . . . . . . . . Kinetic 30 | . . 9 . . 1 . 8 12 . . Thermal 42 | . 7 13 . . . . 8 13 1 . Explosive . | . . . . . . . . . . . Electromagnetic 12 | . 7 5 . . . . . . . . Robot Hit Streak 9 | . 3 4 . . 2 . 6 9 . . Robot Miss Streak 5 | . 2 5 . . . . 1 2 1 . Penetration Max . | . . . . . . . . . . . Secondary Targets 1 | . . 1 . . . . . . . . Max Gunslinging Chain 1 | . . 1 . . . . . . . . Shots Hit Robots 56 | . 9 13 . . 1 . 12 19 . 2 Core Hits 28 | . 5 11 . . 1 . 7 4 . . Critical Kills . | . . . . . . . . . . . Critical Parts Destroyed . | . . . . . . . . . . . Critical Strikes . | . . . . . . . . . . . Melee Attacks 13 | . . . . . . . . . 6 7 Impact 13 | . . . . . . . . . 6 7 Slashing . | . . . . . . . . . . . Piercing . | . . . . . . . . . . . Sneak Attacks . | . . . . . . . . . . . Combat Hostiles . | . . . . . . . . . . . Follow-up Attacks . | . . . . . . . . . . . Damage Inflicted 841 | . 125 211 . . 7 . 121 249 . 128 Guns 572 | . 125 134 . . 7 . 121 185 . . Cannons 64 | . . . . . . . . 64 . . Explosions 77 | . . 77 . . . . . . . . Melee 128 | . . . . . . . . . . 128 Ramming . | . . . . . . . . . . . Kinetic 199 | . . 16 . . 7 . 55 121 . . Thermal 390 | . 44 152 . . . . 66 128 . . Explosive . | . . . . . . . . . . . Electromagnetic 124 | . 81 43 . . . . . . . . Impact 128 | . . . . . . . . . . 128 Slashing . | . . . . . . . . . . . Piercing . | . . . . . . . . . . . Highest Corruption . | . . . . . . . . . . . Average Corruption . | . . . . . . . . . . . Corruption Purged . | . . . . . . . . . . . Corruption Blocked . | . . . . . . . . . . . Overload Shots . | . . . . . . . . . . . Overflow Damage 13 | . . 2 . . . . . . . 11 Projectiles . | . . . . . . . . . . . Explosions 2 | . . 2 . . . . . . . . Melee 11 | . . . . . . . . . . 11 Knockbacks 2 | . . . . . . . . . . 2 Impact 2 | . . . . . . . . . . 2 Kinetic . | . . . . . . . . . . . Secondary . | . . . . . . . . . . . Self-Inflicted Damage . | . . . . . . . . . . . Shots . | . . . . . . . . . . . Rammed . | . . . . . . . . . . . Targets Rammed . | . . . . . . . . . . . Kicked . | . . . . . . . . . . . Crushed . | . . . . . . . . . . . Highest Temperature 150 | . 150 138 . . . . 14 16 . . Average Temperature 51 | . 78 46 . . . . 7 7 . . Received Heat Transfer 618 | . 30 78 . . . . 117 393 . . Siege Activations . | . . . . . . . . . . . Robots Corrupted . | . . . . . . . . . . . Combat Hostiles . | . . . . . . . . . . . Parts Fried . | . . . . . . . . . . . Impact Corruptions 1 | . . . . . . . . . . 1 Robots Melted . | . . . . . . . . . . . Combat Hostiles . | . . . . . . . . . . . Parts Melted . | . . . . . . . . . . . Heat Transferred 872 | . 100 325 . . . . 150 297 . . Parts Sabotaged . | . . . . . . . . . . . Parts Stolen . | . . . . . . . . . . . Parts Stripped . | . . . . . . . . . . . Power Chain Reactions 1 | . . 1 . . . . . . . . Alert | -11 -10 -10 -10 -9 -8 -7 -7 -7 -7 -6 ------- Run | Yrd Mat Min Exi Min Mat Fac Low Low Dat Pro Peak Influence 137 | . 55 135 . . 137 12 . . . . Initial 21 | . . 21 . . . . . . . . Average 57 | . 36 69 . . 97 1 . . . . Maximum Alert Level . | . . . . . . . . . . . Low Security (%) 100 | 100 100 100 . 100 100 100 . . . . Level 1 . | . . . . . . . . . . . Level 2 . | . . . . . . . . . . . Level 3 . | . . . . . . . . . . . Level 4 . | . . . . . . . . . . . Level 5 . | . . . . . . . . . . . High Security . | . . . . . . . . . . . Max Security . | . . . . . . . . . . . Squads Dispatched 1 | . . . . . . 1 . . . . Investigation 1 | . . . . . . 1 . . . . Extermination . | . . . . . . . . . . . Reinforcement . | . . . . . . . . . . . Assault . | . . . . . . . . . . . Garrison . | . . . . . . . . . . . Intercept . | . . . . . . . . . . . Searches Triggered . | . . . . . . . . . . . Construction Impeded . | . . . . . . . . . . . Haulers Reinforced . | . . . . . . . . . . . Active Scanning Responses . | . . . . . . . . . . . Cargo Convoy Interrupts . | . . . . . . . . . . . Stealth | -11 -10 -10 -10 -9 -8 -7 -7 -7 -7 -6 --------- Run | Yrd Mat Min Exi Min Mat Fac Low Low Dat Pro Distress Signals 1 | . . . . . 1 . . . . . Communications Jammed . | . . . . . . . . . . . Distress Signals . | . . . . . . . . . . . Times Spotted 48 | . 4 8 . . 7 1 13 7 5 3 Peak Tracking Total 9 | . 3 3 . . 4 1 9 5 4 3 Tactical Retreats 2 | . . . . . . . . 2 . . Traps | -11 -10 -10 -10 -9 -8 -7 -7 -7 -7 -6 ------- Run | Yrd Mat Min Exi Min Mat Fac Low Low Dat Pro Traps Triggered 1 | . 1 . . . . . . . . . Indirectly . | . . . . . . . . . . . Trap Hack Attempts . | . . . . . . . . . . . Triggered . | . . . . . . . . . . . Disarmed . | . . . . . . . . . . . Reprogrammed . | . . . . . . . . . . . Reused . | . . . . . . . . . . . Traps Extracted . | . . . . . . . . . . . Installed . | . . . . . . . . . . . Triggered . | . . . . . . . . . . . Machines | -11 -10 -10 -10 -9 -8 -7 -7 -7 -7 -6 ---------- Run | Yrd Mat Min Exi Min Mat Fac Low Low Dat Pro Machines Disabled . | . . . . . . . . . . . Max in Single Turn . | . . . . . . . . . . . Garrison Access 2 | . . . . . 1 1 . . . . Machines Repaired . | . . . . . . . . . . . Machines Dismantled . | . . . . . . . . . . . Machines Sabotaged . | . . . . . . . . . . . Overloaded Fab Kills . | . . . . . . . . . . . Hacking | -11 -10 -10 -10 -9 -8 -7 -7 -7 -7 -6 --------- Run | Yrd Mat Min Exi Min Mat Fac Low Low Dat Pro Machines Accessed 15 | . 1 1 2 . 3 2 2 . 4 . Terminals 5 | . 1 1 . . 2 1 . . . . Fabricators . | . . . . . . . . . . . Repair Stations . | . . . . . . . . . . . Recycling Units . | . . . . . . . . . . . Scanalyzers . | . . . . . . . . . . . Garrison Access 2 | . . . . . 1 1 . . . . Total Hacks 60 | . 1 3 5 . 9 5 7 . 30 . Successful 46 | . . 1 5 . 1 2 7 . 30 . Failed 14 | . 1 2 . . 8 3 . . . . Catastrophic 2 | . 1 . . . 1 . . . . . Database Lockouts . | . . . . . . . . . . . Manual 11 | . 1 1 1 . 8 . . . . . Terminals 14 | . 1 3 . . 8 2 . . . . Fabricators . | . . . . . . . . . . . Repair Stations . | . . . . . . . . . . . Recycling Units . | . . . . . . . . . . . Scanalyzers . | . . . . . . . . . . . Garrison Access 4 | . . . . . 1 3 . . . . Terminal Hacks 44 | . . 1 5 . . 1 7 . 30 . Record 21 | . . . 4 . . . 6 . 11 . Part Schematic 11 | . . . . . . . . . 11 . Robot Schematic 5 | . . . . . . . . . 5 . Prototype ID Bank 3 | . . . . . . . . . 3 . Open Door 1 | . . . . . . . 1 . . . Branch Access Points 1 | . . . . . . 1 . . . . Dispatch Records 1 | . . 1 . . . . . . . . Derelict Proto ID Bank 1 | . . . 1 . . . . . . . Fabricator Hacks . | . . . . . . . . . . . Repair Station Hacks . | . . . . . . . . . . . Recycling Unit Hacks . | . . . . . . . . . . . Scanalyzer . | . . . . . . . . . . . Garrison Access Hacks 2 | . . . . . 1 1 . . . . Seal Access 2 | . . . . . 1 1 . . . . Unauthorized Hacks . | . . . . . . . . . . . Terminals . | . . . . . . . . . . . Fabricators . | . . . . . . . . . . . Repair Stations . | . . . . . . . . . . . Recycling Units . | . . . . . . . . . . . Scanalyzers . | . . . . . . . . . . . Garrison Access . | . . . . . . . . . . . Data Cores Recovered . | . . . . . . . . . . . Used . | . . . . . . . . . . . Hacking Detections 5 | . 1 1 . . 2 1 . . . . Full Trace Events . | . . . . . . . . . . . Feedback Events . | . . . . . . . . . . . Feedback Blocked . | . . . . . . . . . . . Robot Schematics Acquired 5 | . . . . . . . . . 5 . Robots Built . | . . . . . . . . . . . Authchips . | . . . . . . . . . . . Time . | . . . . . . . . . . . Total Robot Build Rating . | . . . . . . . . . . . Part Schematics Acquired 11 | . . . . . . . . . 11 . Parts Built . | . . . . . . . . . . . Authchips . | . . . . . . . . . . . Time . | . . . . . . . . . . . Total Part Build Rating . | . . . . . . . . . . . Parts Repaired . | . . . . . . . . . . . Time . | . . . . . . . . . . . Parts Recycled . | . . . . . . . . . . . Recycled Matter . | . . . . . . . . . . . Retrieved Matter . | . . . . . . . . . . . Retrieved Components . | . . . . . . . . . . . Parts Scanalyzed . | . . . . . . . . . . . Part Schematics Acquired . | . . . . . . . . . . . Parts Damaged . | . . . . . . . . . . . Bothacking | -11 -10 -10 -10 -9 -8 -7 -7 -7 -7 -6 ------------ Run | Yrd Mat Min Exi Min Mat Fac Low Low Dat Pro Used RIF Installer . | . . . . . . . . . . . Robots Hacked . | . . . . . . . . . . . Non-combat . | . . . . . . . . . . . Combat . | . . . . . . . . . . . Robot Hacks Applied . | . . . . . . . . . . . Relay Couplers Released . | . . . . . . . . . . . Fabnet Peak Effective % . | . . . . . . . . . . . Robots Rewired . | . . . . . . . . . . . Allies Hacked . | . . . . . . . . . . . Hacks Repelled . | . . . . . . . . . . . Allies | -11 -10 -10 -10 -9 -8 -7 -7 -7 -7 -6 -------- Run | Yrd Mat Min Exi Min Mat Fac Low Low Dat Pro Total Allies 5 | . . . . 3 . . 2 . . . Largest Group 3 | . . . . 3 3 2 3 . . . Highest-Rated Group 60 | . . . . 40 40 32 60 . . . Highest-Rated Ally 25 | . . . . 16 16 16 25 . . . Total Orders . | . . . . . . . . . . . Ally Attacks 33 | . . . . . 16 2 15 . . . Total Damage 434 | . . . . . 204 14 216 . . . Kills 7 | . . . . . 6 . 1 . . . Allies Corrupted . | . . . . . . . . . . . Allies Melted . | . . . . . . . . . . . Intel | -11 -10 -10 -10 -9 -8 -7 -7 -7 -7 -6 ------- Run | Yrd Mat Min Exi Min Mat Fac Low Low Dat Pro Robot Analysis Total 134 | . . . . . . . . . 134 . Derelict Logs Recovered 3 | . . 1 . . . . 1 1 . . Drone Launches . | . . . . . . . . . . . Drone Recoveries . | . . . . . . . . . . . Exploration | -11 -10 -10 -10 -9 -8 -7 -7 -7 -7 -6 ------------- Run | Yrd Mat Min Exi Min Mat Fac Low Low Dat Pro Turns Passed 3085 | 7 149 681 394 170 424 221 369 457 107 106 Spaces Moved 2275 | 3 79 392 245 107 254 202 321 401 92 179 Core 190 | . . . . . . . . . 11 179 Treads 1095 | 3 79 392 245 107 254 15 . . . . Legs . | . . . . . . . . . . . Wheels 990 | . . . . . . 187 321 401 81 . Hover . | . . . . . . . . . . . Flight . | . . . . . . . . . . . Fastest Speed 50 | 160 160 160 160 160 160 100 100 100 50 50 Average Speed 125 | 160 160 160 160 160 160 104 100 104 94 50 Slowest Speed 160 | 160 160 160 160 160 160 160 100 115 100 50 Overloaded Moves . | . . . . . . . . . . . Propulsion Burnouts . | . . . . . . . . . . . Robots Hopped . | . . . . . . . . . . . Cave-ins Triggered . | . . . . . . . . . . . Time Travels 1 | . . . . . . . . . 1 . Exploration Rate (%) 41 | 2 24 74 60 44 24 9 47 60 82 29 Regions Visited 10 Branch Regions 7 Pre-discovered Areas 27 | . . 1 1 . . . . 1 24 . Known Exits Taken 1 | . . . . . . 1 . . . . Unknown Exits Taken 9 | 1 1 1 1 1 1 . 1 1 1 . Scrap Searched 4 | . . 1 . . . . 2 1 . . Spaces Dug 2 | . . . . . . . . . 2 . Terrain Destroyed 3 | . . 1 . . . . . . 2 . Melee 2 | . . . . . . . . . 2 . Projectile . | . . . . . . . . . . . AOE 1 | . . 1 . . . . . . . . Terrain Rammed . | . . . . . . . . . . . Walls Destroyed . | . . . . . . . . . . . Machines Disabled . | . . . . . . . . . . . Actions | -11 -10 -10 -10 -9 -8 -7 -7 -7 -7 -6 --------- Run | Yrd Mat Min Exi Min Mat Fac Low Low Dat Pro Total 2415 | 4 87 423 248 106 270 211 355 417 105 189 Wait 56 | . . 7 . . 12 4 25 . 5 3 Move 2265 | 2 78 391 244 106 253 201 320 400 91 179 Hop . | . . . . . . . . . . . Pick Up 14 | . 1 5 1 . 2 4 1 . . . Fast Attach 5 | . 1 1 . . 2 1 . . . . Attach 6 | . . . 1 . . 1 . 3 1 . Detach . | . . . . . . . . . . . Swap 4 | 2 . . 1 . . . . 1 . . Drop 8 | . . 5 1 . . . 1 . 1 . Fire 44 | . 7 14 . . 1 . 8 13 1 . Melee 13 | . . . . . . . . . 6 7 Ram . | . . . . . . . . . . . Kick . | . . . . . . . . . . . Crush . | . . . . . . . . . . . Escape Stasis . | . . . . . . . . . . . Rewire . | . . . . . . . . . . . Trap . | . . . . . . . . . . . Miscellaneous . | . . . . . . . . . . . Route ------- -11/Scrapyard -10/Materials -10/Mines (discovered 2 exits: [*Mat] / *Exi) -10/Exiles (discovered 2 exits: [*Min x2]) -9/Mines -8/Materials -7/Factory (discovered 3 exits: Sto / *Low x2) -7/Lower Caves -7/Lower Caves -7/Data Miner -6/Proximity Caves History --------- Turn | Location | Event 4 | -11/Scrapyard | Discovered new exit (range 2) 8 | -11/Scrapyard | Entered Materials 141 | -10/Materials | Discovered new exit (range 11) 157 | -10/Materials | Entered Mines 304 | -10/Mines | Build established: Mutant 400 | -10/Mines | Discovered new exit (range 12) 403 | -10/Mines | Found a hidden stash of uninstalled traps 611 | -10/Mines | A weapon hastily lodged in a ceiling crevice suddenly fell to the ground 689 | -10/Mines | Learned location of Storage (-7) 798 | -10/Mines | Learned Materials terminal intel 830 | -10/Mines | Deemed a non-threat by the Exiles lab entrance 832 | -10/Mines | Discovered new exit (range 5) 838 | -10/Mines | Entered Exiles 862 | -10/Exiles | Discovered new exit (range 15) 882 | -10/Exiles | Met 8R-AWN 906 | -10/Exiles | Met EX-HEX 966 | -10/Exiles | Met EX-BIN 992 | -10/Exiles | Aligned with FarCom system 994 | -10/Exiles | Given EX-Vault access code 1030 | -10/Exiles | Opened EX-Vault 1041 | -10/Exiles | Found Chronowheel 1077 | -10/Exiles | Warned to stay clear of 0b10 Research branches 1124 | -10/Exiles | Met EX-DEC 1132 | -10/Exiles | Learned location of Zion (-6) 1218 | -10/Exiles | Discovered new exit (range 11) 1232 | -10/Exiles | Left Exiles lab with Chronowheel 1232 | -10/Exiles | Entered Mines 1233 | -9/Mines | Assembled infested the area 1238 | -9/Mines | Assisted by a Guerilla fighting off Assembled 1322 | -9/Mines | Assisted by bots powering up and referring to "LRC-V3" 1378 | -9/Mines | Discovered new exit (range 16) 1402 | -9/Mines | Entered Materials 1402 | -8/Materials | Accompanied by 3 allies 1402 | -8/Materials | Evolved 4 slots: Propulsion x2, Utility x2 1403 | -8/Materials | Loaded intel: 10 terminal locations 1804 | -8/Materials | Discovered new exit (range 12) 1826 | -8/Materials | Entered Factory 1826 | -7/Factory | Accompanied by 2 allies 1826 | -7/Factory | Evolved 2 slots: Utility x2 1998 | -7/Factory | Discovered new exit (range 8) 2024 | -7/Factory | Identified exit to Storage 2024 | -7/Factory | Identified exit to Lower Caves 2047 | -7/Factory | Entered Lower Caves 2047 | -7/Lower Caves | Accompanied by 2 allies 2081 | -7/Lower Caves | Learned 4 Factory zone layouts 2141 | -7/Lower Caves | Encountered a Warlord checkpoint 2225 | -7/Lower Caves | Build established: Hacker-Mutant 2258 | -7/Lower Caves | A Commander dispatched an escort 2273 | -7/Lower Caves | Learned Factory trap positions 2273 | -7/Lower Caves | Learned Armory emergency access door positions 2273 | -7/Lower Caves | Learned Factory stockpile data 2273 | -7/Lower Caves | Learned Extension stockpile data 2273 | -7/Lower Caves | Learned Extension security intel 2363 | -7/Lower Caves | Discovered new exit (range 19) 2403 | -7/Lower Caves | Attracted the attention of an 0b10 outpost 2416 | -7/Lower Caves | Entered another Lower Caves area 2455 | -7/Lower Caves | Attracted the attention of an 0b10 checkpoint 2516 | -7/Lower Caves | Lost 3 parts (1n2w) 2581 | -7/Lower Caves | Encountered a Warlord checkpoint 2869 | -7/Lower Caves | Discovered new exit (range 5) 2873 | -7/Lower Caves | Entered Data Miner 2873 | -7/Data Miner | Discovered new exit (range 6) 2888 | -7/Data Miner | Met Data Miner 2911 | -7/Data Miner | Learned location of Section 7 (-2) 2911 | -7/Data Miner | Acquired the access code to Warlord's prototype stash 2929 | -7/Data Miner | Received God Mode back door access code from Data Miner 2935 | -7/Data Miner | Activated Chronowheel 2935 | -7/Data Miner | Spacetime reconverged on an earlier point 2937 | -7/Data Miner | Interfaced with the Data Conduit 2975 | -7/Data Miner | Core integrity fell below 50% 2980 | -7/Data Miner | Entered Proximity Caves 3009 | -6/Proximity Caves | Lost 4 parts (1n2u1w) 3076 | -6/Proximity Caves | Core integrity fell below 20% 3086 | -6/Proximity Caves | Destroyed by S-27 Virus with Autogun Last Messages --------------- Downloaded 23 destinations. Downloaded encryption format records. Connection remotely terminated. 02969_ The unstable cave ceiling collapses. 02972_ Imp. Heat Sink destroyed. 02974_ Particle Gun destroyed. 02974_ Arm. Huge Wheel destroyed. 02974_ Dropped Lrg. Storage Unit. 02978_ Hacking Suite destroyed. LOCATION=UNKNOWN GOAL=ESCAPE 03019_ LR-18D(k) breaks down the debris. 03073_ S-27 Virus knocked back. 03076_ Hacking Suite destroyed. 03076_ Destroyed Lgt. Nuclear Core. 03076_ S-27 Virus system corrupted by crushing effect. 03076_ S-27 Virus knocked back. 03079_ S-27 Virus IFF system glitched. 03079_ S-27 Virus destroyed. 03083_ Lgt. Nuclear Core fries itself beyond repair. Map ----- +----------------------------------------------------+ | ?????????????????????????????????????????????????? | | ?????????????????????????????????????????????????? | | ?????????????????????????????????????????????????? | | ?????????????????????????????????????????????????? | | ?????????????????????????????????????????????????? | | ?????????????????????????????????????????????????? | | ?????????????????????????????????????????????????? | | ?????????????????????????????????????????????????? | | ?????????????????????????????????????????????????? | | ?????????????????????????????????????????????????? | | ?????????????????????????????????????????????????? | | ?????????????????????????????????????????????????? | | ?????????????????????????????????????????????????? | | ?????????????????????????????????????????????????? | | ?????????????????????????????????????????????????? | | ?????????????????????????????????????????????????? | | ?????????????????????????????????????????????????? | | ?????????????????????????????????????????????????? | | ?????????????????????????????????????????????????? | | ?????????????????????????????????????????????????? | | ?????????????????????????????????????????????????? | | #############????????????????????????????????????? | | # #????????????????????????????????????? | | #??????????#####?????????????????????? | | ## #?????????## s ##????????????????????? | | ### ## #????????##s @=%#????????#???????????? | | ??# ##### #???????## ### #???????????? | | ??# #???# ###???### #??????? | | ### ##### ##?## ## #????????? | | # ## ### ##?# #????????? | | ## ###?# #????????? | | ##?## % ##????????? | | ## #???##! #?????????? | | ### #?????? #?????????? | | #### ## ## ### ##???# ????????? | | ???## ## #??###??? ??????? | | ????# ## ######## ## #??????? | | ??#### #??##?????????? | | ??? #### #?????????????? | | ??? ##### * #?????????????? | | ???# ## !%! #??????????????? | | ???# ??###### ###??????????????? | | ???# # ????????# ##????????????????? | | ???# ##???????# #?????????????????? | | ???# #####???# #### #### #?????????????????? | | #### ##??# ##?#####?????#?????????????????? | | # # #??# #?# ####??????????????????????? | | ##??# ## #??????????????????????? | | # #### ##?????????????????????? | | ##????????????????????? | +----------------------------------------------------+ Best States ------------- Heat Dissipation 48 Energy Generation 16 Energy Capacity 290 Matter Stores 300 Matter Capacity 300 Sight Range 20 Terrain Scan Density 10 Evasion (%) 50 Recoil Reduction 2 Offensive Hacking 20 Item Schematics ----------------- Combat Drone Bay | -7/Data Miner | Free Lgt. Regenerative Plating | -7/Data Miner | Free Cld. Aerolev Unit | -7/Data Miner | Free Thermal Defense Suite | -7/Data Miner | Free Force Rifle | -7/Data Miner | Free Antigrav System | -7/Data Miner | Free Enh. Gauss Cannon | -7/Data Miner | Free Recoil Nullifier | -7/Data Miner | Free Imp. Focal Shield | -7/Data Miner | Free Adv. Transmission Jammer | -7/Data Miner | Free Adv. Medium Treads | -7/Data Miner | Free Robot Schematics ------------------ M-22 Extractor | -7/Data Miner | Free S-27 Virus | -7/Data Miner | Free C-17 Slicer | -7/Data Miner | Free W-25 Informer | -7/Data Miner | Free Y-64 Sentinel | -7/Data Miner | Free Fabricated ------------ Nothing Alien Tech Used ----------------- None Achievements -------------- None Challenges ------------ None Game ------ Seed HardlightAssaultTearclaws Manual? 1 Play Time 00:29:35 Cumulative 77.4 hours Start 2024.07.20 @ 12:37:54 End 2024.07.20 @ 13:26:37 Sessions 1 Manual Loads 0 Difficulty Rogue Special Mode None Game No. 82 Rogue 82 Adventurer 0 Explorer 0 Win Type - Total 1 Types 1/0/0/0/0/0/0/0/0 Lore% 42 Gallery% 51 Achievement% 44 Wizard Run 0 Options --------- Layout 0 ASCII 0 Keyboard 0 Movement Arrows Keybinds 0 Fullscreen 2 Font 18/SmallcapsGlow Map View 76x50 Zoom Use 0% Tactical HUD 1 Map Filters NONE Filters NONE Steam 1 RUN: 9dd26ff5-fc1d-48ea-84fa-ad72f82879e2